bitfinex-derivatives/quotes_ETHF0:USTF0_20241004
["timestamp","ask_amount","ask_price","bid_price","bid_amount"]
[1728036635289,2.3665,2377.7,2377.3,0.42065]
[1728036635788,2.3665,2377.7,2377.2,4.7278]
[1728036635987,2.3665,2377.7,2377.3,0.42065]
[1728036636285,2.3665,2377.7,2377.4,0.42064]
[1728036637188,1.9459,2377.7,2377.2,4.7278]
[1728036637384,0.4259,2377.7,2377.5,0.42062]
[1728036637575,0.4259,2377.7,2377.6,0.4165]
[1728036637780,0.4259,2377.7,2377.6,0.83711]
[1728036638087,4.6315,2377.7,2377.6,0.4165]
[1728036638387,0.4259,2377.7,2377.6,0.83711]
[1728036640278,0.4259,2377.7,2377.6,0.4165]
[1728036641389,0.4259,2377.7,2377.4,1.94063]
[1728036641690,0.4259,2377.7,2377.5,0.42062]
[1728036642988,0.4259,2377.7,2377.6,0.42061]
[1728036643296,3.6021,2377.8,2377.7,0.42059]
[1728036643795,3.6021,2377.8,2377.7,0.84299]
[1728036645985,3.6021,2377.8,2377.7,0.4224]
[1728036647388,4.02267,2377.8,2377.7,0.4224]
[1728036647589,3.6021,2377.8,2377.7,0.4224]
[1728036647790,4.02267,2377.8,2377.7,0.4224]
[1728036647989,3.6021,2377.8,2377.7,0.4224]
[1728036649493,4.02267,2377.8,2377.7,0.4224]
[1728036649795,3.6021,2377.8,2377.7,0.4224]
[1728036651488,3.6021,2377.8,2377.7,0.84299]
[1728036652006,4.02267,2377.8,2377.7,0.4224]
[1728036652294,5.54269,2377.8,2377.5,0.42062]
[1728036652590,5.54269,2377.8,2377.5,0.84732]
[1728036652986,4.02269,2377.8,2377.5,0.4267]
[1728036653190,4.02269,2377.8,2377.5,0.84731]
[1728036653791,3.6021,2377.8,2377.7,0.42059]
[1728036655604,0.3943,2377.8,2377.7,0.42059]
[1728036655897,0.81487,2377.8,2377.7,0.42059]
[1728036656098,0.81487,2377.8,2377.7,0.84739]
[1728036656508,0.81487,2377.8,2377.7,1.26069]
[1728036657102,0.81487,2377.8,2377.7,0.8401]
[1728036659199,0.81487,2377.8,2377.7,1.26069]
[1728036659595,0.81487,2377.8,2377.7,0.8401]
[1728036659999,0.81487,2377.8,2377.7,1.26069]
[1728036660297,0.81487,2377.8,2377.7,0.8401]
[1728036661505,0.81487,2377.8,2377.7,1.26069]
[1728036662309,0.81487,2377.8,2377.7,0.8401]
[1728036665010,0.81487,2377.8,2377.7,0.4268]
[1728036668105,0.42063,2377.5,2377.4,0.4191]
[1728036668313,0.42064,2377.4,2377.3,0.4113]
[1728036668503,0.42066,2377.3,2377.2,3.2078]
[1728036669513,2.735,2377.4,2377.2,3.2078]
[1728036669711,0.8041,2377.4,2377.2,3.62847]
[1728036670013,3.2078,2377.7,2377.2,4.7278]
[1728036670315,3.2078,2377.7,2377.4,1.94063]
[1728036670316,3.6284,2377.7,2377.4,1.94063]
[1728036670508,3.2078,2377.7,2377.5,0.42063]
[1728036670709,3.2078,2377.7,2377.5,0.83553]
[1728036670909,3.2078,2377.7,2377.6,0.4275]
[1728036671312,3.62839,2377.7,2377.6,0.4275]
[1728036671819,0.42062,2377.6,2377.3,0.82885]
[1728036672015,0.4166,2377.5,2377.3,1.25635]
[1728036673015,0.83724,2377.5,2377.3,0.8357]
[1728036673215,0.3929,2377.4,2377.3,0.8357]
[1728036673410,0.81354,2377.4,2377.3,0.8357]
[1728036673916,0.3929,2377.4,2377.3,0.8357]
[1728036674527,0.4166,2377.5,2377.3,1.25636]
[1728036674814,0.83723,2377.5,2377.3,1.25636]
[1728036675720,0.4166,2377.5,2377.3,0.8357]
[1728036675915,0.83724,2377.5,2377.3,1.25636]
[1728036677012,0.4166,2377.5,2377.3,0.8357]
[1728036677213,0.42062,2377.6,2377.4,1.94064]
[1728036677409,0.42062,2377.6,2377.5,0.42063]
[1728036677816,3.6264,2377.7,2377.5,0.42063]
[1728036678115,4.047,2377.7,2377.5,0.42063]
[1728036678322,4.047,2377.7,2377.6,0.4291]
[1728036679115,3.6264,2377.7,2377.6,0.4291]
[1728036679318,4.04699,2377.7,2377.6,0.4291]
[1728036679717,3.6264,2377.7,2377.6,0.4291]
[1728036680010,4.04699,2377.7,2377.6,0.4291]
[1728036681120,3.6264,2377.7,2377.6,0.4291]
[1728036683032,5.567,2377.7,2377.4,2.33334]
[1728036683217,5.567,2377.7,2377.4,2.75174]
[1728036683619,5.567,2377.7,2377.5,0.42063]
[1728036685819,5.1464,2377.7,2377.4,0.8111]
[1728036686023,0.42063,2377.5,2377.4,0.4184]
[1728036686218,0.42063,2377.5,2377.3,0.82886]
[1728036686521,0.8261,2377.4,2377.3,0.4082]
[1728036686920,0.8261,2377.4,2377.3,0.82886]
[1728036687322,0.8261,2377.4,2377.3,1.24716]
[1728036688025,0.4031,2377.4,2377.3,1.24716]
[1728036690424,3.6308,2377.6,2377.5,0.42063]
[1728036691115,0.423,2377.6,2377.5,0.42063]
[1728036692126,0.84361,2377.6,2377.5,0.42063]
[1728036693033,0.423,2377.6,2377.5,0.42063]
[1728036694129,0.84361,2377.6,2377.4,0.81743]
[1728036694323,0.84361,2377.6,2377.3,2.3465]
[1728036694324,0.42063,2377.5,2377.3,2.76715]
[1728036694919,0.84362,2377.6,2377.4,0.42064]
[1728036695325,0.423,2377.6,2377.3,2.3465]
[1728036695534,0.423,2377.6,2377.5,0.42063]
[1728036695828,0.84361,2377.6,2377.5,0.42063]
[1728036697131,0.423,2377.6,2377.5,0.42063]
[1728036698536,0.84361,2377.6,2377.5,0.42063]
[1728036699029,0.423,2377.6,2377.3,2.3465]
[1728036699225,0.42063,2377.5,2377.3,2.76715]
[1728036699429,0.42064,2377.5,2377.3,1.24715]
[1728036699631,0.4025,2377.4,2377.3,1.24716]
[1728036700130,0.4025,2377.4,2377.3,0.8265]
[1728036700328,0.82314,2377.4,2377.3,1.24716]
[1728036700529,0.4025,2377.4,2377.3,1.24716]
[1728036704549,4.05142,2377.6,2377.4,0.42064]
[1728036704749,0.4044,2377.5,2377.4,0.42064]
[1728036709045,0.423,2377.6,2377.4,1.52]
[1728036709246,0.423,2377.6,2377.5,0.42063]
[1728036709550,0.8375,2377.7,2377.6,0.42061]
[1728036709751,0.8375,2377.7,2377.4,1.52]
[1728036709952,0.8375,2377.7,2377.6,0.42061]
[1728036710149,0.4169,2377.7,2377.6,1.94061]
[1728036712241,0.83749,2377.7,2377.5,1.94061]
[1728036712648,0.83749,2377.7,2377.6,0.80801]
[1728036713353,0.83749,2377.7,2377.6,0.3874]
[1728036714257,0.4169,2377.7,2377.6,0.80801]
[1728036714552,0.4169,2377.7,2377.6,0.3874]
[1728036714755,0.83749,2377.7,2377.6,0.80801]
[1728036715153,0.4014,2377.8,2377.6,0.80801]
[1728036715358,0.82198,2377.8,2377.7,0.3939]
[1728036718557,0.82198,2377.8,2377.6,0.80801]
[1728036721466,0.4014,2377.8,2377.6,0.80801]
[1728036722962,0.82198,2377.8,2377.6,0.80801]
[1728036723165,0.4014,2377.8,2377.6,0.3874]
[1728036723459,0.82198,2377.8,2377.6,0.808]
[1728036727668,0.82197,2377.8,2377.6,0.808]
[1728036731673,0.4014,2377.8,2377.7,0.42059]
[1728036732373,0.82197,2377.8,2377.7,0.42059]
[1728036732875,0.82199,2377.8,2377.6,0.808]
[1728036733269,0.42059,2377.7,2377.6,0.3874]
[1728036733469,0.42063,2377.5,2377.4,0.3886]
[1728036735777,2.3197,2377.6,2377.4,0.3886]
[1728036735968,0.42063,2377.5,2377.4,0.80924]
[1728036736381,0.42063,2377.5,2377.4,0.3886]
[1728036740975,0.4079,2377.6,2377.4,0.3886]
[1728036741181,4.7278,2377.7,2377.4,0.3886]
[1728036741376,1.47272,2377.9,2377.6,0.42061]
[1728036741377,0.4213,2377.9,2377.6,0.42061]
[1728036741581,0.42057,2377.8,2377.7,0.856]
[1728036741875,1.94057,2377.8,2377.7,0.4277]
[1728036742178,0.42063,2377.5,2377.4,0.3886]
[1728036742381,0.42063,2377.5,2377.4,0.8163]
[1728036742682,0.42063,2377.5,2377.4,1.23694]
[1728036742885,0.42063,2377.5,2377.4,0.8163]
[1728036747988,0.42066,2377.3,2377.2,0.8294]
[1728036748192,1.94066,2377.3,2377.2,0.8326]
[1728036748691,2.34046,2377.3,2377.2,0.8326]
[1728036748987,2.34046,2377.3,2377.2,0.4043]
[1728036749586,0.82046,2377.3,2377.2,0.4043]
[1728036750786,0.82046,2377.3,2377.2,0.82498]
[1728036750787,0.3998,2377.3,2377.2,0.82498]
[1728036753692,0.3998,2377.3,2377.2,0.4043]
[1728036753997,0.3998,2377.3,2377.1,0.82179]
[1728036753998,0.82046,2377.3,2377.1,0.82179]
[1728036754193,0.3998,2377.3,2377.1,0.4011]
[1728036754700,0.42068,2377.2,2377.1,0.4011]
[1728036755503,0.42068,2377.2,2377.0,4.02421]
[1728036755699,0.82478,2377.2,2377.0,4.02421]
[1728036756002,0.4041,2377.2,2377.1,0.4207]
[1728036764615,0.4041,2377.2,2377.0,3.6035]
[1728036765010,0.4041,2377.2,2377.1,0.4207]
[1728036768616,0.4041,2377.2,2377.0,3.6035]
[1728036768816,0.4041,2377.2,2377.1,0.4207]
[1728036769813,9.3383,2377.2,2376.7,0.098]
[1728036770014,0.42075,2376.8,2376.7,0.82857]
[1728036770318,1.94074,2376.9,2376.7,0.82857]
[1728036770513,0.429,2376.8,2376.7,0.82857]
[1728036771513,1.949,2376.8,2376.6,0.4184]
[1728036771814,1.949,2376.8,2376.5,0.804]
[1728036771815,2.3367,2376.8,2376.5,0.804]
[1728036772015,0.42079,2376.6,2376.5,0.804]
[1728036772218,2.3367,2376.8,2376.5,0.804]
[1728036772413,0.42078,2376.7,2376.5,1.2248]
[1728036772618,0.42079,2376.6,2376.5,1.2248]
[1728036772915,0.42078,2376.7,2376.5,1.2248]
[1728036774110,0.42078,2376.7,2376.5,0.804]
[1728036774308,3.6279,2376.9,2376.5,2.324]
[1728036774518,4.04864,2376.9,2376.5,2.324]
[1728036774710,4.04864,2376.9,2376.7,0.42075]
[1728036774911,4.04864,2376.9,2376.8,0.4292]
[1728036774912,3.62854,2376.9,2376.8,0.4292]
[1728036775118,3.62854,2376.9,2376.8,0.84995]
[1728036775414,7.83574,2376.9,2376.8,0.84995]
[1728036776014,3.2078,2376.9,2376.8,0.84995]
[1728036776412,3.2078,2376.9,2376.8,1.27745]
[1728036776613,3.62853,2376.9,2376.8,1.27745]
[1728036776907,4.01873,2376.9,2376.8,1.27745]
[1728036777215,0.81093,2376.9,2376.8,1.27745]
[1728036777410,0.81093,2376.9,2376.8,0.8567]
[1728036777917,2.33093,2376.9,2376.8,0.8567]
[1728036778114,2.33093,2376.9,2376.8,0.4275]
[1728036780621,1.9102,2376.9,2376.8,0.84825]
[1728036781511,1.9102,2376.9,2376.8,0.4275]
[1728036781512,2.33093,2376.9,2376.8,0.4275]
[1728036782322,1.9102,2376.9,2376.8,0.84825]
[1728036782712,2.33093,2376.9,2376.8,0.84825]
[1728036783114,3.2078,2377.0,2376.9,0.42073]
[1728036783424,0.4272,2377.1,2377.0,0.42071]
[1728036783623,0.4272,2377.1,2377.0,0.84841]
[1728036784513,3.2078,2377.3,2377.0,0.4277]
[1728036784719,3.62847,2377.3,2377.0,0.4277]
[1728036785022,3.62847,2377.3,2377.1,0.84719]
[1728036785921,3.62847,2377.3,2377.2,0.42068]
[1728036786122,3.2078,2377.3,2377.2,0.42068]
[1728036786318,3.62847,2377.3,2377.1,0.84719]
[1728036787235,0.42068,2377.2,2377.1,0.84719]
[1728036787924,3.62847,2377.3,2377.1,0.84719]
[1728036788126,0.42068,2377.2,2377.1,0.84719]
[1728036790224,0.42068,2377.2,2377.1,0.4265]
[1728036790723,0.42068,2377.2,2377.1,0.8472]
[1728036791021,1.94068,2377.2,2377.1,0.4265]
[1728036791213,1.52,2377.2,2377.1,0.8472]
[1728036791824,3.62848,2377.3,2377.1,0.4265]
[1728036792020,3.62848,2377.3,2377.2,0.42068]
[1728036792222,3.2078,2377.3,2377.1,0.84719]
[1728036792420,3.62847,2377.3,2377.1,0.84719]
[1728036792726,0.42068,2377.2,2377.1,0.84719]
[1728036794929,3.62847,2377.3,2377.2,0.42068]
[1728036796232,0.42067,2377.3,2377.2,0.42068]
[1728036797926,0.42065,2377.4,2377.1,0.4265]
[1728036798125,0.84941,2377.6,2377.5,0.42063]
[1728036798325,0.4186,2377.7,2377.5,1.94063]
[1728036798326,0.8315,2377.7,2377.5,1.94063]
[1728036798631,0.83351,2377.7,2377.5,1.94063]
[1728036798828,0.83351,2377.7,2377.6,1.24381]
[1728036799030,0.83351,2377.7,2377.6,0.8232]
[1728036800432,0.4129,2377.7,2377.6,0.8232]
[1728036800931,0.83349,2377.7,2377.6,0.8232]
[1728036806037,0.4129,2377.7,2377.6,0.8232]
[1728036808339,0.83349,2377.7,2377.6,0.8232]
[1728036812443,0.4129,2377.7,2377.6,1.24381]
[1728036812850,0.4129,2377.7,2377.6,0.8232]
[1728036816553,0.4129,2377.7,2377.6,1.24381]
[1728036816847,0.4129,2377.7,2377.6,0.8232]
[1728036817851,0.4129,2377.7,2377.6,1.24381]
[1728036818050,0.4129,2377.7,2377.6,0.8232]
[1728036819142,0.4129,2377.7,2377.6,0.4133]
[1728036819351,0.83349,2377.7,2377.6,0.4133]
[1728036819653,0.4129,2377.7,2377.6,0.83391]
[1728036824649,0.83349,2377.7,2377.6,0.83391]
[1728036825754,1.9464,2377.8,2377.6,0.83391]
[1728036825959,2.36698,2377.8,2377.7,0.82869]
[1728036826156,2.36698,2377.8,2377.7,0.4081]
[1728036828154,0.42058,2377.8,2377.7,0.82869]
[1728036828365,0.42058,2377.8,2377.7,0.4081]
[1728036839583,5.56347,2377.9,2377.7,0.4081]
[1728036839758,3.6229,2377.9,2377.7,0.8247]
[1728036839963,4.04347,2377.9,2377.7,1.24529]
[1728036840165,3.6229,2377.9,2377.7,1.24529]
[1728036840466,0.42057,2377.8,2377.7,1.24529]
[1728036840665,0.42057,2377.8,2377.7,0.8247]
[1728036841767,0.42054,2378.0,2377.8,0.42056]
[1728036841963,0.42054,2378.0,2377.9,0.4246]
[1728036843565,1.94054,2378.0,2377.7,1.24528]
[1728036843768,0.7918,2378.1,2377.7,1.24528]
[1728036843769,1.94056,2377.9,2377.7,1.66988]
[1728036844071,1.94056,2377.9,2377.7,1.25329]
[1728036844262,0.3989,2377.8,2377.7,1.25329]
[1728036846776,0.3989,2378.0,2377.7,5.0383]
[1728036846975,0.81944,2378.0,2377.8,0.81977]
[1728036849376,0.81944,2378.0,2377.8,0.3992]
[1728036849674,0.42056,2377.9,2377.7,1.25328]
[1728036849869,0.3989,2378.0,2377.7,1.25328]
[1728036849870,0.81945,2378.0,2377.7,1.25328]
[1728036850076,0.81945,2378.0,2377.8,0.42057]
[1728036852274,0.3989,2378.0,2377.8,0.42057]
[1728036852767,0.7922,2378.0,2377.8,0.42057]
[1728036853367,1.21274,2378.0,2377.7,0.8327]
[1728036853567,0.7922,2378.0,2377.7,0.8327]
[1728036853874,0.7922,2378.0,2377.8,0.42057]
[1728036856173,1.21274,2378.0,2377.8,0.42057]
[1728036861073,1.21274,2378.0,2377.4,1.05161]
[1728036861074,8.3122,2378.0,2377.2,4.148]
[1728036861376,8.3122,2378.0,2377.3,3.7084]
[1728036861377,0.4206,2377.7,2377.3,3.7084]
[1728036861573,0.8087,2377.6,2377.5,0.42062]
[1728036864679,1.22931,2377.6,2377.5,0.42062]
[1728036865179,0.8087,2377.6,2377.5,0.42062]
[1728036867068,0.8087,2377.6,2377.4,0.42064]
[1728036867271,1.22932,2377.6,2377.4,0.42064]
[1728036869075,1.22932,2377.6,2377.5,0.42063]
[1728036869588,1.22932,2377.6,2377.4,0.42063]
[1728036871084,0.42063,2377.5,2377.4,0.42063]
[1728036871487,0.42063,2377.5,2377.3,0.799]
[1728036871488,3.2078,2377.5,2377.3,0.799]
[1728036871679,0.42064,2377.4,2377.3,0.799]
[1728036872074,0.42068,2377.2,2376.8,0.29210415]
[1728036872274,0.4194,2377.1,2377.0,1.94071]
[1728036872482,0.3924,2377.3,2377.2,0.42068]
[1728036872980,0.81307,2377.3,2377.1,0.81689]
[1728036873179,0.81307,2377.3,2377.2,0.834]
[1728036873681,0.4194,2377.4,2377.2,2.354]
[1728036873892,3.62843,2377.5,2377.4,0.42064]
[1728036874089,3.2078,2377.5,2377.4,1.94064]
[1728036874684,0.42062,2377.6,2377.5,0.42063]
[1728036875082,0.42062,2377.6,2377.5,0.82113]
[1728036875486,0.42067,2377.3,2377.2,0.42067]
[1728036877379,1.23305,2377.4,2377.3,0.42066]
[1728036877690,0.42067,2377.3,2377.2,0.42067]
[1728036878681,1.23305,2377.4,2377.3,0.42066]
[1728036880799,0.4225,2377.4,2377.3,0.42066]
[1728036881101,0.4225,2377.4,2377.3,1.94066]
[1728036881399,3.62843,2377.5,2377.4,0.42064]
[1728036881599,3.62843,2377.5,2377.4,0.82184]
[1728036881894,3.2078,2377.5,2377.4,1.24474]
[1728036882096,3.62843,2377.5,2377.4,3.16054]
[1728036882496,3.62843,2377.5,2377.4,1.64054]
[1728036883898,3.2078,2377.5,2377.4,1.64054]
[1728036886011,0.81152,2377.6,2377.4,1.2199]
[1728036886206,0.81152,2377.6,2377.5,0.42063]
[1728036888007,1.52,2377.8,2377.7,0.42059]
[1728036888008,0.42058,2377.8,2377.7,0.42059]
[1728036888213,0.42058,2377.8,2377.5,1.52]
[1728036888214,0.42059,2377.7,2377.6,0.42059]
[1728036888609,1.52,2377.8,2377.4,3.79151]
[1728036888914,1.94059,2377.8,2377.7,0.42059]
[1728036890708,0.7929,2377.9,2377.5,1.52]
[1728036890909,1.21346,2377.9,2377.8,0.42057]
[1728036891608,0.42057,2377.8,2377.5,0.42062]
[1728036891811,1.52,2377.6,2377.5,0.42062]
[1728036892012,1.94061,2377.6,2377.4,0.8241]
[1728036892211,1.94061,2377.6,2377.4,1.24473]
[1728036892212,0.8132,2377.5,2377.4,1.24473]
[1728036892411,1.23383,2377.5,2377.4,1.24473]
[1728036893010,0.8132,2377.5,2377.4,1.24473]
[1728036894118,1.23383,2377.5,2377.4,1.24473]
[1728036894510,0.8132,2377.5,2377.4,1.24473]
[1728036898815,1.23383,2377.5,2377.4,1.24473]
[1728036899115,0.8132,2377.5,2377.4,1.24473]
[1728036900719,1.23383,2377.5,2377.4,0.8241]
[1728036901020,1.23383,2377.5,2377.4,1.24474]
[1728036901516,0.8132,2377.5,2377.4,1.24474]
[1728036904218,1.23383,2377.5,2377.4,1.24474]
[1728036904719,0.8132,2377.5,2377.4,1.24474]
[1728036906621,1.23383,2377.5,2377.4,1.24474]
[1728036907929,0.8132,2377.5,2377.4,1.24474]
[1728036909026,5.5357,2377.7,2377.6,0.42061]
[1728036909328,3.2078,2377.7,2377.6,0.42061]
[1728036909528,3.62839,2377.7,2377.6,0.42061]
[1728036911127,0.42062,2377.6,2377.5,0.42062]
[1728036911427,0.83202,2377.6,2377.5,0.42062]
[1728036911931,0.4114,2377.6,2377.5,0.42062]
[1728036912629,0.83201,2377.6,2377.5,0.42062]
[1728036912831,0.4114,2377.6,2377.5,0.42062]
[1728036913630,0.83201,2377.6,2377.5,0.42062]
[1728036913831,0.4114,2377.6,2377.5,0.42062]
[1728036921237,0.83201,2377.6,2377.5,0.42062]
[1728036921534,0.4114,2377.6,2377.5,0.42062]
[1728036928341,0.83201,2377.6,2377.5,0.42062]
[1728036928842,0.4114,2377.6,2377.5,0.42062]
[1728036929044,2.98401,2377.9,2377.4,2.7606]
[1728036929236,1.9406,2377.7,2377.5,0.42062]
[1728036931037,1.9406,2377.7,2377.6,0.42061]
[1728036931231,1.9406,2377.7,2377.5,0.42061]
[1728036932040,1.9406,2377.7,2377.6,0.42061]
[1728036932041,1.52,2377.7,2377.6,0.42061]
[1728036932247,1.94059,2377.7,2377.6,0.42061]
[1728036934442,1.52,2377.7,2377.6,0.42061]
[1728036934741,0.4214,2377.8,2377.4,2.7606]
[1728036934742,1.9414,2377.8,2377.4,2.7606]
[1728036934945,0.42054,2378.0,2377.7,1.52]
[1728036935239,0.42055,2378.0,2377.8,1.64256]
[1728036936344,1.94055,2378.0,2377.8,1.64256]
[1728036937043,1.52,2378.0,2377.9,0.42056]
[1728036937244,1.52,2378.1,2377.9,0.42056]
[1728036937443,1.94053,2378.1,2377.9,0.42056]
[1728036937743,1.94053,2378.1,2377.9,0.42055]
[1728036937939,0.42054,2378.0,2377.9,0.42055]
[1728036938343,1.94053,2378.1,2377.9,0.42055]
[1728036938847,0.4205,2378.3,2378.0,1.94053]
[1728036939041,0.4205,2378.3,2378.2,1.52]
[1728036939235,0.4205,2378.3,2378.1,1.65932]
[1728036940745,3.6334,2378.4,2378.2,1.52]
[1728036940949,0.42048,2378.3,2378.2,1.52]
[1728036941252,5.1534,2378.4,2378.1,1.65932]
[1728036941442,0.42049,2378.3,2378.1,1.65932]
[1728036942147,5.1534,2378.4,2378.1,1.2388]
[1728036942444,0.42049,2378.3,2378.1,1.2388]
[1728036943044,1.9405,2378.2,2377.9,0.42054]
[1728036943244,3.6278,2378.1,2377.9,0.42054]
[1728036943445,4.02,2378.1,2377.9,0.42054]
[1728036944755,4.44053,2378.1,2377.9,0.42054]
[1728036947746,1.23273,2378.1,2377.9,0.42054]
[1728036948249,0.8122,2378.1,2377.9,0.42054]
[1728036949349,1.23272,2378.1,2377.9,0.42054]
[1728036949957,0.8122,2378.1,2377.8,1.917]
[1728036950258,0.8122,2378.1,2378.0,0.42054]
[1728036952153,0.42049,2378.3,2378.0,0.42054]
[1728036952353,0.42049,2378.3,2377.9,1.52]
[1728036952354,1.24049,2378.3,2378.1,0.84431]
[1728036952551,3.6283,2378.2,2378.1,0.4238]
[1728036952758,3.6283,2378.2,2378.0,0.84312]
[1728036952953,4.043,2378.2,2378.0,0.84312]
[1728036953956,0.8352,2378.2,2378.0,0.84312]
[1728036955257,0.42053,2378.1,2377.9,0.84434]
[1728036955451,0.413,2378.0,2377.9,0.84434]
[1728036955652,0.8331,2378.0,2377.9,0.84434]
[1728036956853,0.4147,2378.2,2378.1,0.42052]
[1728036957155,0.3989,2378.2,2378.1,0.42052]
[1728036959155,0.4141,2378.3,2378.0,1.52]
[1728036959358,0.4141,2378.3,2378.2,0.4205]
[1728036959553,0.83458,2378.3,2378.2,0.4205]
[1728036959863,0.4141,2378.3,2378.2,0.8426]
[1728036960054,4.02718,2378.4,2378.2,0.8426]
[1728036960561,0.42048,2378.3,2378.2,2.3626]
[1728036960859,0.42048,2378.3,2378.2,0.8426]
[1728036961451,0.81938,2378.4,2378.2,0.8426]
[1728036961855,0.3989,2378.4,2378.2,0.4221]
[1728036962060,0.4205,2378.2,2378.1,0.4009]
[1728036962254,0.42053,2378.1,2377.9,0.82165]
[1728036962459,1.24252,2378.1,2377.9,0.82165]
[1728036962652,1.24253,2378.1,2377.9,0.82164]
[1728036963051,0.4017,2378.1,2378.0,0.42054]
[1728036963253,0.4107,2378.3,2378.2,0.4205]
[1728036964659,0.83118,2378.3,2378.2,0.4205]
[1728036966761,0.42052,2378.1,2378.0,0.848]
[1728036966952,0.42054,2378.0,2377.9,0.4011]
[1728036967154,0.42057,2377.8,2377.7,0.81808]
[1728036967356,0.42061,2377.6,2377.5,0.4078]
[1728036967551,0.42061,2377.6,2377.5,0.42063]
[1728036967759,1.52,2377.7,2377.5,0.42063]
[1728036967962,0.4186,2377.6,2377.5,0.42063]
[1728036968267,0.83922,2377.6,2377.5,0.42063]
[1728036968851,0.4186,2377.6,2377.5,0.42063]
[1728036970060,0.4186,2377.6,2377.4,0.82843]
[1728036970562,0.4186,2377.6,2377.4,0.4078]
[1728036970763,0.4186,2377.6,2377.5,0.42063]
[1728036971467,0.4186,2377.6,2377.5,1.94063]
[1728036971769,2.35708,2377.8,2377.6,0.4206]
[1728036972361,0.42059,2377.7,2377.5,1.94061]
[1728036972564,2.35708,2377.8,2377.6,0.42061]
[1728036975069,0.83708,2377.8,2377.6,0.42061]
[1728036975869,1.9365,2377.8,2377.5,1.52]
[1728036976069,0.4206,2377.7,2377.4,0.82843]
[1728036976270,1.94062,2377.6,2377.4,0.4078]
[1728036976469,0.8459,2377.5,2377.4,0.4078]
[1728036976963,0.8459,2377.5,2377.4,0.82844]
[1728036977570,2.35709,2377.8,2377.5,0.42062]
[1728036977773,3.17889,2377.8,2377.5,0.42062]
[1728036980858,3.17889,2377.8,2377.4,0.4078]
[1728036980859,0.42061,2377.6,2377.4,0.82844]
[1728036981070,5.14844,2377.5,2377.3,0.3975]
[1728036981271,0.42066,2377.3,2377.1,3.2078]
[1728036981570,1.9242,2377.2,2377.1,3.2078]
[1728036981874,1.9242,2377.2,2377.1,3.6285]
[1728036982770,1.9242,2377.2,2377.1,3.2078]
[1728036983373,2.34488,2377.2,2377.1,3.2078]
[1728036983572,2.34488,2377.2,2377.1,3.6285]
[1728036983573,0.4042,2377.2,2377.1,3.6285]
[1728036984969,0.4042,2377.2,2377.1,0.4207]
[1728036987577,0.4042,2377.2,2376.9,6.4878]
[1728036987773,0.4042,2377.2,2377.1,0.4207]
[1728036990577,0.82488,2377.2,2377.1,0.4207]
[1728036990979,0.4042,2377.2,2377.1,0.4207]
[1728036992578,0.82488,2377.2,2377.0,0.4207]
[1728036992778,0.82488,2377.2,2376.9,6.4878]
[1728036992984,0.4042,2377.2,2377.1,0.4207]
[1728036994085,0.82488,2377.2,2377.1,0.4207]
[1728036994587,0.4042,2377.2,2377.1,0.4207]
[1728036995286,1.22055,2377.4,2377.2,0.42067]
[1728036995489,1.63605,2377.4,2377.3,0.395]
[1728037002696,1.63604,2377.4,2377.3,0.81566]
[1728037003096,1.63604,2377.4,2377.3,0.395]
[1728037003289,1.63604,2377.4,2377.3,0.81566]
[1728037003495,0.819,2377.4,2377.3,0.81566]
[1728037004097,0.4155,2377.4,2377.3,1.21166]
[1728037004395,3.2078,2377.5,2377.4,0.42064]
[1728037005203,3.62843,2377.5,2377.4,0.42064]
[1728037005589,3.2078,2377.5,2377.4,0.42064]
[1728037006095,3.2078,2377.5,2377.3,0.791]
[1728037006300,0.42064,2377.4,2377.3,1.21165]
[1728037006495,3.2078,2377.5,2377.3,1.21165]
[1728037006801,3.62844,2377.5,2377.3,1.21165]
[1728037007095,3.2078,2377.5,2377.3,0.791]
[1728037007402,3.2078,2377.5,2377.4,0.42064]
[1728037009703,3.2078,2377.5,2377.3,0.791]
[1728037009898,3.2078,2377.5,2377.4,0.42064]
[1728037012698,3.62843,2377.5,2377.4,0.42064]
[1728037013097,3.2078,2377.5,2377.4,0.42064]
[1728037013300,2.35042,2377.6,2377.5,0.42063]
[1728037014992,0.83042,2377.6,2377.5,0.42063]
[1728037015191,0.4098,2377.6,2377.4,0.4178]
[1728037015405,0.42063,2377.5,2377.4,0.83843]
[1728037016106,0.83042,2377.6,2377.4,0.83843]
[1728037016305,0.42063,2377.5,2377.4,0.83843]
[1728037016605,0.83042,2377.6,2377.5,0.42063]
[1728037016904,0.42063,2377.5,2377.4,0.83843]
[1728037020204,4.7278,2377.5,2377.3,0.791]
[1728037020511,1.05166,2377.3,2376.9,0.098]
[1728037020808,0.42072,2377.0,2376.8,1.20833]
[1728037021501,0.42072,2377.0,2376.8,0.7876]
[1728037021701,1.94071,2377.1,2376.9,0.42073]
[1728037021903,4.0177,2377.2,2376.9,1.52]
[1728037022104,3.3058,2377.5,2377.1,1.52]
[1728037022307,3.2078,2377.5,2377.3,1.94066]
[1728037022502,3.2078,2377.5,2377.3,1.94065]
[1728037022705,3.2078,2377.5,2377.3,2.35895]
[1728037022706,3.62844,2377.5,2377.3,2.35895]
[1728037023107,3.62844,2377.5,2377.4,0.42064]